Cogmind - Beta 12 X4 @@@ ROGUE MODE // 2022.09.29 @ 07:37:03 Player: youngster Result: Core destroyed Performance ------------- Evolutions (1) 500 Regions Visited (5) 1000 Robots Destroyed (76) 380 Value Destroyed (1675) 1675 Prototype IDs (41) 820 Alien Tech Used (0) 0 Bonus (40) 40 TOTAL SCORE: 4415 Bonus ------- High Alert Combat Kills 24 Follower Combat Kills 167 Aligned with FarCom 300 Friendly Fire -451 Cogmind --------- Core Integrity 0/400 Matter 237/300 Energy 100/100 System Corruption 5% Temperature Cool (0) Movement Rolling (125) Ox3 Location -9/Exiles Parts ------- > --- POWER (1) -------- (None) > --- PROPULSION (3) --- Wheel > --- UTILITY (3) ------ High-capacity Storage Unit > --- WEAPON (2) ------- (None) > --- INVENTORY (20) --- Long-range Tractor Beam Mini Grenade Launcher Missile Launcher Datajack Peak State ------------ > --- POWER ------------ Light Nuclear Core > --- PROPULSION ------- Light Treads Improved Treads Improved Treads > --- UTILITY ---------- Large Storage Unit Improved Terrain Scanner Hardlight Generator > --- WEAPON ----------- Heavy Assault Rifle Missile Launcher > --- INVENTORY -------- Light Nuclear Core Light Treads Light Treads Improved Treads Improved Treads Compact Wheel High-capacity Matter Pod Shield Generator Long-range Tractor Beam EM Pulse Gun Assault Rifle Assault Rifle Assault Rifle Datajack [Rating: 22] Favorites ----------- Power Light Nuclear Core Engine Ion Engine Power Core Light Nuclear Core Propulsion Improved Treads Treads Improved Treads Leg Aluminum Leg Wheel Wheel Utility Large Storage Unit Device Improved Terrain Scanner Storage Large Storage Unit Protection Hardened Light Armor Plating Weapon Heavy Assault Rifle Ballistic Gun Heavy Assault Rifle Launcher Missile Launcher Special Melee Weapon Datajack Build | -11 -10 -10 -9 -9 -9 ------- Run | Scr Mat Min Mat Min Exi Slots Evolved 2 | . . . 2 . . Power . | . . . . . . Propulsion 1 | . . . 1 . . Utility 1 | . . . 1 . . Weapon . | . . . . . . Parts Attached 92 | 7 24 2 26 19 14 Power 7 | 1 1 . 2 2 1 Engine 4 | 1 1 . 1 1 . Core 3 | . . . 1 1 1 Reactor . | . . . . . . Propulsion 19 | 2 2 . 7 3 5 Treads 17 | 2 2 . 7 2 4 Leg 1 | . . . . 1 . Wheel 1 | . . . . . 1 Hover . | . . . . . . Flight . | . . . . . . Utility 26 | 2 8 . 9 5 2 Device 20 | 1 7 . 9 2 1 Storage 3 | 1 1 . . . 1 Processor . | . . . . . . Hackware . | . . . . . . Protection 3 | . . . . 3 . Artifact . | . . . . . . Weapon 40 | 2 13 2 8 9 6 Energy Gun . | . . . . . . Energy Cannon . | . . . . . . Ballistic Gun 25 | 2 7 1 6 5 4 Ballistic Cannon . | . . . . . . Launcher 14 | . 6 1 2 3 2 Special Weapon . | . . . . . . Impact Weapon . | . . . . . . Slashing Weapon . | . . . . . . Piercing Weapon . | . . . . . . Special Melee Weapon 1 | . . . . 1 . Unidentified Prototypes . | . . . . . . Parts Lost 23 | . . . 2 6 15 Power 3 | . . . . 1 2 Propulsion 9 | . . . . 2 7 Utility 5 | . . . 1 2 2 Weapon 6 | . . . 1 1 4 Highest Loss Streak 8 | . . . 2 3 8 To Critical Strikes 10 | . . . . . 10 Average Slot Usage (%) 95 | . 99 100 98 90 82 Engine 5 | . 14 14 1 3 . Core 5 | . . . 9 5 10 Treads 28 | . 28 28 32 28 21 Leg 2 | . . . . 3 10 Device 15 | . 14 14 21 13 6 Storage 12 | . 14 14 11 11 11 Protection 1 | . . . . 1 9 Ballistic Gun 18 | . 26 14 21 21 3 Launcher 2 | . . 13 . . . Special Melee Weapon 1 | . . . . . 9 Naked Turns . | . . . . . . Heaviest Build 59 | 14 30 33 40 37 59 Greatest Support 66 | 40 46 46 66 66 43 Greatest Overweight (x) 2 | . . . . 2 1 Average Overweight (x) . | . . . . . . Largest Inventory Capacity 20 | 8 15 15 15 15 20 Average Capacity 14 | 7 12 15 15 15 19 Most Carried 19 | 4 15 15 15 15 19 Average Carried 13 | 2 12 14 14 14 13 Final Capacity 20 | 8 15 15 15 15 20 Final Carried 15 | 4 15 15 15 15 4 Class Distribution -------------------- 100% | Mutant Dominant Class ---------------- Mutant | -10/Materials Mutant | -10/Mines Mutant | -9/Materials Mutant | -9/Mines Mutant | -9/Exiles Resources | -11 -10 -10 -9 -9 -9 ----------- Run | Scr Mat Min Mat Min Exi Matter Collected 2841 | 323 601 261 678 518 460 Remotely 152 | . 133 . 19 . . Salvage Created 2269 | 163 521 49 1073 458 5 Parts 173 | 14 39 5 81 34 . Haulers Intercepted 8 | . 2 . 6 . . Recyclers Shooed 2 | . 1 . 1 . . Parts Field Recycled . | . . . . . . Retrieved Matter . | . . . . . . Parts Self-Destructed . | . . . . . . Prevented . | . . . . . . Kills | -11 -10 -10 -9 -9 -9 ------- Run | Scr Mat Min Mat Min Exi Combat Hostiles Destroyed 55 | . 12 3 16 19 5 Guns 39 | . 9 . 16 13 1 AOE 16 | . 3 3 . 6 4 Classes Destroyed 12 | 2 4 . 3 3 . Worker 5 | . . . 1 4 . Builder 1 | . . . 1 . . Tunneler 8 | 5 1 . 1 1 . Hauler 8 | . 2 . 6 . . Recycler 2 | 1 . . 1 . . Watcher 4 | . 1 . 3 . . Swarmer 15 | . 3 2 3 7 . Grunt 25 | . 9 1 7 8 . Brawler 1 | . . . . 1 . Sentry 6 | . . . 6 . . Demolisher 1 | . . . . 1 . Assembled 8 | . . . . 2 6 Best Kill Streak 5 | 3 3 2 4 5 5 Combat Bots Only 5 | . 3 2 4 4 5 Max Kills in Single Turn 3 | 1 2 1 1 3 3 Gunslinging 1 | . . . . 1 . Exploded 3 | . 2 1 . 2 3 Melee . | . . . . . . Uniques/NPCs Destroyed . | . . . . . . Combat | -11 -10 -10 -9 -9 -9 -------- Run | Scr Mat Min Mat Min Exi Damage Taken 3811 | . 413 36 681 1094 1587 Core 462 | . 62 . 115 67 218 Absorbed by Shields 267 | . . . 167 80 20 Regen/Repaired (Parts) 207 | . 133 . 74 . . Core Remaining (%) 87 | 100 . 75 . . . Volleys Fired 254 | 14 54 5 76 43 62 Largest 2 | 2 2 1 2 2 2 Hottest 46 | 40 40 36 46 46 46 Shots Fired 485 | 28 102 5 154 81 115 Gun 464 | 28 96 . 153 75 112 Cannon . | . . . . . . Launcher 21 | . 6 5 1 6 3 Special . | . . . . . . Kinetic 464 | 28 96 . 153 75 112 Thermal . | . . . . . . Explosive 21 | . 6 5 1 6 3 Electromagnetic . | . . . . . . Robot Hit Streak 29 | 6 14 . 29 14 28 Robot Miss Streak 5 | 2 3 . 5 4 2 Penetration Max . | . . . . . . Secondary Targets 4 | . . . 2 2 . Max Gunslinging Chain 1 | . . . 1 1 . Shots Hit Robots 354 | 16 70 . 110 56 102 Core Hits 148 | 8 29 11 41 33 26 Critical Kills 3 | . . . 3 . . Critical Parts Destroyed . | . . . . . . Critical Strikes 6 | . . . 3 1 2 Destroy 6 | . . . 3 1 2 Melee Attacks 6 | . . . . . 6 Impact . | . . . . . . Slashing . | . . . . . . Piercing . | . . . . . . Sneak Attacks 6 | . . . . . 6 Combat Hostiles . | . . . . . . Follow-up Attacks . | . . . . . . Damage Inflicted 6441 | 182 990 376 1494 1642 1757 Guns 4384 | 180 761 . 1400 793 1250 Cannons . | . . . . . . Explosions 1862 | . 221 376 . 818 447 Melee . | . . . . . . Ramming 195 | 2 8 . 94 31 60 Kinetic 4384 | 180 761 . 1400 793 1250 Thermal 70 | . . 70 . . . Explosive 1792 | . 221 306 . 818 447 Electromagnetic . | . . . . . . Impact . | . . . . . . Slashing . | . . . . . . Piercing . | . . . . . . Highest Corruption 5 | . . . 2 2 5 Average Corruption 2 | . . . 2 2 2 Corruption Purged . | . . . . . . Corruption Blocked . | . . . . . . Effects 62 | . . . 33 16 13 Message Errors 17 | . . . 10 4 3 Matter Fused 13 | . . . 7 2 4 Heat Flow Errors 3 | . . . . 3 . Energy Discharges 9 | . . . 6 2 1 Parts Rejected 2 | . . . 1 1 . Data Loss (minor) 9 | . . . 5 1 3 Data Loss (major) 3 | . . . 1 . 2 Misfires 5 | . . . 3 2 . Weapon Failures 1 | . . . . 1 . Overload Shots . | . . . . . . Overflow Damage 111 | . 39 22 3 44 3 Projectiles . | . . . . . . Explosions 108 | . 39 22 . 44 3 Melee 3 | . . . 3 . . Knockbacks 2 | . . . 1 1 . Impact 2 | . . . 1 1 . Kinetic . | . . . . . . Secondary . | . . . . . . Self-Inflicted Damage 116 | . . 36 . 58 22 Shots 4 | . . 1 . 3 . Rammed 36 | 1 2 . 16 2 15 Targets Rammed 42 | 1 2 . 20 4 15 Kicked . | . . . . . . Crushed 6 | . . . 4 2 . Highest Temperature 265 | . 18 . 17 265 34 Average Temperature 34 | . 7 . 5 69 13 Received Heat Transfer 610 | . 207 . 247 156 . Effects 3 | . . . . 3 . Interference 3 | . . . . 3 . Siege Activations . | . . . . . . Robots Corrupted . | . . . . . . Combat Hostiles . | . . . . . . Parts Fried 1 | . . . 1 . . Impact Corruptions 1 | . . . 1 . . Robots Melted . | . . . . . . Combat Hostiles . | . . . . . . Parts Melted . | . . . . . . Heat Transferred 100 | . . 100 . . . Parts Sabotaged . | . . . . . . Parts Stolen . | . . . . . . Parts Stripped . | . . . . . . Power Chain Reactions . | . . . . . . Missiles Intercepted . | . . . . . . Alert | -11 -10 -10 -9 -9 -9 ------- Run | Scr Mat Min Mat Min Exi Peak Influence 424 | 30 279 381 269 424 . Initial 52 | . 19 23 52 . . Average 103 | 16 83 156 66 189 . Maximum Alert Level 2 | . 1 1 1 2 . Low Security (%) 84 | 100 89 80 94 51 . Level 1 11 | . 10 19 5 25 . Level 2 3 | . . . . 22 . Level 3 . | . . . . . . Level 4 . | . . . . . . Level 5 . | . . . . . . High Security . | . . . . . . Max Security . | . . . . . . Squads Dispatched 12 | . 5 1 6 . . Investigation 9 | . 4 1 4 . . Extermination . | . . . . . . Reinforcement 3 | . 1 . 2 . . Assault . | . . . . . . Garrison . | . . . . . . Intercept . | . . . . . . Searches Triggered . | . . . . . . Construction Impeded . | . . . . . . Haulers Reinforced . | . . . . . . Active Scanning Responses . | . . . . . . Cargo Convoy Interrupts . | . . . . . . Stealth | -11 -10 -10 -9 -9 -9 --------- Run | Scr Mat Min Mat Min Exi Distress Signals 5 | . 2 . 3 . . Communications Jammed . | . . . . . . Distress Signals . | . . . . . . Times Spotted 87 | . 22 5 32 21 7 Peak Tracking Total 8 | . 4 3 4 5 8 Tactical Retreats 3 | . . . 1 2 . Traps | -11 -10 -10 -9 -9 -9 ------- Run | Scr Mat Min Mat Min Exi Traps Triggered 3 | . 1 . 2 . . Indirectly . | . . . . . . Trap Hack Attempts . | . . . . . . Triggered . | . . . . . . Disarmed . | . . . . . . Reprogrammed . | . . . . . . Reused . | . . . . . . Traps Extracted . | . . . . . . Installed . | . . . . . . Triggered . | . . . . . . Machines | -11 -10 -10 -9 -9 -9 ---------- Run | Scr Mat Min Mat Min Exi Machines Disabled 12 | . 1 4 1 3 3 Max in Single Turn 2 | . 1 2 1 2 2 Machines Sabotaged . | . . . . . . Overloaded Fab Kills . | . . . . . . Hacking | -11 -10 -10 -9 -9 -9 --------- Run | Scr Mat Min Mat Min Exi Machines Accessed 28 | . 10 1 14 1 2 Terminals 18 | . 7 . 10 1 . Fabricators . | . . . . . . Repair Stations 3 | . 1 . 2 . . Recycling Units 3 | . 2 . 1 . . Scanalyzers 1 | . . . 1 . . Garrison Access . | . . . . . . Total Hacks 89 | . 31 1 54 1 2 Successful 56 | . 15 1 38 . 2 Failed 31 | . 15 . 15 1 . Catastrophic 3 | . 3 . . . . Database Lockouts 2 | . 1 . 1 . . Manual 41 | . 17 . 23 . 1 Terminals 59 | . 20 . 38 1 . Fabricators . | . . . . . . Repair Stations 14 | . 8 . 6 . . Recycling Units 4 | . 3 . 1 . . Scanalyzers 9 | . . . 9 . . Garrison Access . | . . . . . . Terminal Hacks 26 | . 6 1 17 . 2 Record 1 | . . . . . 1 Part Schematic 1 | . 1 . . . . Robot Analysis 3 | . . . 3 . . Prototype ID Bank 3 | . 2 . 1 . . Open Door 1 | . . 1 . . . Branch Access Points 1 | . . . 1 . . Terminal Index 1 | . . . 1 . . Alert Level 2 | . 1 . 1 . . Unreport Threat 4 | . 1 . 3 . . Locate Traps 3 | . 1 . 2 . . Surveillance Status 1 | . . . 1 . . Recall Investigation 1 | . . . 1 . . Hauler Manifests 1 | . . . 1 . . Registered Components 1 | . . . 1 . . Zone Layout 1 | . . . 1 . . EX-Prototype ID Bank 1 | . . . . . 1 Fabricator Hacks . | . . . . . . Repair Station Hacks 11 | . 6 . 5 . . Scan Component 6 | . 3 . 3 . . Repair 5 | . 3 . 2 . . Recycling Unit Hacks . | . . . . . . Scanalyzer 9 | . . . 9 . . Insert Component 4 | . . . 4 . . Analyze 5 | . . . 5 . . Garrison Access Hacks . | . . . . . . Unauthorized Hacks 10 | . 3 . 7 . . Terminals 7 | . 1 . 6 . . Track 2 | . 1 . 1 . . Botnet 3 | . . . 3 . . Disrupt 1 | . . . 1 . . Operators 1 | . . . 1 . . Fabricators . | . . . . . . Repair Stations . | . . . . . . Recycling Units 3 | . 2 . 1 . . Tunnel 3 | . 2 . 1 . . Scanalyzers . | . . . . . . Garrison Access . | . . . . . . Data Cores Recovered . | . . . . . . Used . | . . . . . . Hacking Detections 20 | . 9 . 10 1 . Full Trace Events 2 | . 1 . 1 . . Feedback Events . | . . . . . . Feedback Blocked . | . . . . . . Robot Schematics Acquired . | . . . . . . Robots Built . | . . . . . . Authchips . | . . . . . . Time . | . . . . . . Total Robot Build Rating . | . . . . . . Part Schematics Acquired 5 | . 1 . 4 . . Parts Built . | . . . . . . Authchips . | . . . . . . Time . | . . . . . . Total Part Build Rating . | . . . . . . Parts Repaired 5 | . 3 . 2 . . Time 148 | . 78 . 70 . . Parts Recycled . | . . . . . . Recycled Matter . | . . . . . . Retrieved Matter . | . . . . . . Retrieved Components . | . . . . . . Parts Scanalyzed 4 | . . . 4 . . Part Schematics Acquired 4 | . . . 4 . . Parts Damaged 1 | . . . 1 . . Bothacking | -11 -10 -10 -9 -9 -9 ------------ Run | Scr Mat Min Mat Min Exi Used RIF Installer . | . . . . . . Robots Hacked 4 | . . . . . 4 Non-combat 3 | . . . . . 3 Combat 1 | . . . . . 1 Robot Hacks Applied 6 | . . . . . 6 parse_system 6 | . . . . . 6 Relay Couplers Released . | . . . . . . Fabnet Peak Effective % . | . . . . . . Robots Rewired . | . . . . . . Allies Hacked . | . . . . . . Hacks Repelled . | . . . . . . Allies | -11 -10 -10 -9 -9 -9 -------- Run | Scr Mat Min Mat Min Exi Total Allies 6 | . . 5 . 1 . Largest Group 5 | . . 5 3 1 . Highest-Rated Group 91 | . . 91 67 31 . Highest-Rated Ally 31 | . . 31 31 31 . Total Orders . | . . . . . . Ally Attacks 30 | . . 24 5 1 . Total Damage 359 | . . 284 55 20 . Kills 8 | . . 8 . . . Allies Corrupted . | . . . . . . Allies Melted . | . . . . . . Intel | -11 -10 -10 -9 -9 -9 ------- Run | Scr Mat Min Mat Min Exi Robot Analysis Total 3 | . . . 3 . . Derelict Logs Recovered 4 | . . 2 . 2 . Drone Launches . | . . . . . . Drone Recoveries . | . . . . . . Exploration | -11 -10 -10 -9 -9 -9 ------------- Run | Scr Mat Min Mat Min Exi Turns Passed 8061 | 243 1504 1107 2871 1174 1162 Spaces Moved 4017 | 121 674 645 1521 629 427 Core 5 | 5 . . . . . Treads 4011 | 116 674 645 1521 628 427 Legs 1 | . . . . 1 . Wheels . | . . . . . . Hover . | . . . . . . Flight . | . . . . . . Fastest Speed 50 | 50 160 160 160 160 160 Average Speed 166 | 155 160 160 160 160 219 Slowest Speed 260 | 160 160 160 160 260 240 Overloaded Moves . | . . . . . . Propulsion Burnouts . | . . . . . . Robots Hopped . | . . . . . . Cave-ins Triggered . | . . . . . . Exploration Rate (%) 76 | 7 98 97 98 99 60 Regions Visited 5 Branch Regions 3 Pre-discovered Areas 5 | . 2 1 1 . 1 Known Exits Taken 1 | . . . 1 . . Unknown Exits Taken 4 | 1 1 1 . 1 . Scrap Searched 5 | . . 3 . 2 . Spaces Dug 68 | . 37 . 16 15 . Terrain Destroyed 182 | . 37 48 16 59 22 Melee . | . . . . . . Projectile . | . . . . . . AOE 182 | . 37 48 16 59 22 Terrain Rammed . | . . . . . . Walls Destroyed . | . . . . . . Machines Disabled . | . . . . . . Actions | -11 -10 -10 -9 -9 -9 --------- Run | Scr Mat Min Mat Min Exi Total 4952 | 147 1008 717 1813 717 550 Wait 432 | . 222 58 140 12 . Move 4012 | 120 673 644 1520 628 427 Hop . | . . . . . . Pick Up 58 | 5 20 4 12 6 11 Fast Attach 18 | 6 2 . 6 4 . Attach 19 | 1 . . 2 6 10 Detach 3 | . . . . 2 1 Swap 55 | . 22 2 18 9 4 Drop 54 | . 13 4 19 3 15 Fire 254 | 14 54 5 76 43 62 Melee 6 | . . . . . 6 Ram 10 | . . . . . 10 Kick . | . . . . . . Crush 31 | 1 2 . 20 4 4 Escape Stasis . | . . . . . . Rewire . | . . . . . . Trap . | . . . . . . Miscellaneous . | . . . . . . Route ------- -11/Scrapyard -10/Materials (discovered 4 exits: *Mat x3 / *Min) -10/Mines (discovered 2 exits: *Mat x2) -9/Materials (discovered 5 exits: [*Mat x3] / *Min x2) -9/Mines (discovered 3 exits: [*Mat x2] / *Exi) -9/Exiles (discovered 1 exit: [*Min]) History --------- Turn | Location | Event 3 | -11/Scrapyard | Discovered new exit (range 15) 244 | -11/Scrapyard | Entered Materials 302 | -10/Materials | Build established: Mutant 599 | -10/Materials | Discovered new exit (range 13) 779 | -10/Materials | Central database locked down 790 | -10/Materials | Discovered new exit (range 14) 958 | -10/Materials | Discovered new exit (range 16) 1410 | -10/Materials | Discovered new exit (range 11) 1662 | -10/Materials | Repaired Lgt. Assault Rifle 1690 | -10/Materials | Repaired Assault Rifle 1717 | -10/Materials | Repaired Grenade Launcher 1748 | -10/Materials | Entered Mines 1825 | -10/Mines | Discovered new exit (range 8) 1956 | -10/Mines | Learned location of Mines (-9) 1968 | -10/Mines | Assisted by bots powering up and referring to "LRC-V3" 2037 | -10/Mines | Met a Derelict shopkeep closing up shop 2329 | -10/Mines | Discovered new exit (range 8) 2855 | -10/Mines | Entered Materials 2855 | -9/Materials | Accompanied by 3 allies 2855 | -9/Materials | Evolved 2 slots: Propulsion x1, Utility x1 2860 | -9/Materials | Led the pair of lost Derelicts to an unsafe place 3126 | -9/Materials | Met 8R-AWN 3675 | -9/Materials | Discovered new exit (range 6) 3945 | -9/Materials | Identified exit to Mines 4062 | -9/Materials | Repaired Imp. Treads 4101 | -9/Materials | Repaired Hardlight Generator 4115 | -9/Materials | Discovered new exit (range 9) 4815 | -9/Materials | Discovered new exit (range 14) 5537 | -9/Materials | Central database locked down 5726 | -9/Materials | Entered Mines 5727 | -9/Mines | Assembled infested the area 5728 | -9/Mines | Followed 8R-AWN into the Mines 5784 | -9/Mines | A weapon hastily lodged in a ceiling crevice suddenly fell to the ground 5829 | -9/Mines | Learned 8 Materials zone layouts 5833 | -9/Mines | Received a Mining Laser from a helpful Derelict 5988 | -9/Mines | Lost 3 parts (1p2u) 6219 | -9/Mines | Learned Materials emergency access door positions 6451 | -9/Mines | Discovered new exit (range 9) 6656 | -9/Mines | Discovered new exit (range 5) 6681 | -9/Mines | Discovered new exit (range 11) 6900 | -9/Mines | Entered Exiles 6976 | -9/Exiles | Discovered new exit (range 15) 6995 | -9/Exiles | Welcomed by 8R-AWN 7018 | -9/Exiles | Met EX-HEX 7117 | -9/Exiles | Met EX-DEC 7183 | -9/Exiles | Learned location of Zion (-6) 7221 | -9/Exiles | Met EX-BIN 7256 | -9/Exiles | Aligned with FarCom system 7259 | -9/Exiles | Given EX-Vault access code 7314 | -9/Exiles | Opened EX-Vault 7379 | -9/Exiles | Warned to stay clear of 0b10 Research branches 7484 | -9/Exiles | Learned about 8R-AWN's background 7867 | -9/Exiles | Attacked by the Exiles 7938 | -9/Exiles | Core integrity fell below 50% 7976 | -9/Exiles | Lost 8 parts (1p3n2u2w) 8051 | -9/Exiles | Core integrity fell below 20% 8062 | -9/Exiles | Core destroyed Last Messages --------------- 08050_ Penetrated by HV Slug. 08050_ HV Slug penetrates Earth. 08050_ Penetrated by HV Slug. 08050_ HV Slug penetrates Earth. 08050_ Slammed into 8R-AWN. 08052_ Destabilizing: System corrupted (+2). 08053_ Slammed into 8R-AWN. 08055_ Penetrated by HV Slug. 08055_ HV Slug penetrates Wall. 08055_ Penetrated by HV Slug. 08055_ HV Slug penetrates Wall. 08055_ Slammed into 8R-AWN. 08057_ Destabilizing: Core damaged (-4). 08058_ Slammed into 8R-AWN. 08059_ System corrupted: Substantial component data lost. 08059_ Penetrated by HV Slug. 08059_ HV Slug penetrates Wall. 08059_ Slammed into 8R-AWN. 08060_ Destabilizing: System corrupted (+1). 08062_ Slammed into 8R-AWN. Map ----- +----------------------------------------------------+ | ?#" "X" """""??????????????????????????????? | | ?#" """ #???????????????????????????????? | | ?#" """""""""#???????????????????????????????? | | ##" ###########???????????????????????????????? | | #"" #?????????????????????????????????????????? | | "" #?????????????????????????????????????????? | | "" ##????????????????????????????????????????? | | "" ##???###########?????????????????????????? | | " #####"""" """"##????????????????????????? | | " """ """"##???????????????????????? | | "" " #???????????????????????? | | " """#???????????????????????? | | a"#???????????#####???????? | | " "##?????????##" #???????? | | "###??##???#" #???????? | | """"" " #?# #?###" ##??????? | | ####""" ## #?#;# ###????? | | ???#####""" !#; ?#; ###### | | ???????##""" !###;# #"""" | | ????????#"""" !!%;# | | ???????##"" !! ## | | ##??####"""" #### | | ####""" ""#?#"""""#### | | """" ; ""##?#######??## | | g ### ##????????????? | | @ ;#??#?????????????? | | ## #???????????????? | | " "" # ## #??????????????? | | "## ##""" " " " #?# #?????????????? | | ### ######""" """# ####??# #????????????? | | ??# #????###""""#; # ##??????# ????????????? | | ?## ####???####### # ###????????? ???????????? | | ?#! " #?????????#######????????????? ??????????? | | ?#" #????????????????????????????????????????? | | ?#" "#????????????????????????????????????????? | | ?# "" "#????????????????????????????????????????? | | ?########????????????????????????????????????????? | | ?????????????????????????????????????????????????? | | ?????????????????????????????????????????????????? | | ?????????????????????????????????????????????????? | | ?????????????????????????????????????????????????? | | ?????????????????????????????????????????????????? | | ?????????????????????????????????????????????????? | | ?????????????????????????????????????????????????? | | ?????????????????????????????????????????????????? | | ?????????????????????????????????????????????????? | | ?????????????????????????????????????????????????? | | ?????????????????????????????????????????????????? | | ?????????????????????????????????????????????????? | | ?????????????????????????????????????????????????? | +----------------------------------------------------+ Best States ------------- Heat Dissipation 28 Energy Generation 14 Energy Capacity 265 Matter Stores 300 Matter Capacity 300 Sight Range 16 Terrain Scan Range 16 Terrain Scan Density 10 Armor Coverage 225 Evasion (%) 40 Recoil Reduction 3 Item Schematics ----------------- Huge Storage Unit | -10/Materials | Hacked Missile Launcher | -9/Materials | Scanalyzed Shield Generator | -9/Materials | Scanalyzed Imp. Treads | -9/Materials | Scanalyzed Com. Wheel | -9/Materials | Scanalyzed Robot Schematics ------------------ None Fabricated ------------ Nothing Alien Tech Used ----------------- None Achievements -------------- None Challenges ------------ None Game ------ Seed MiniPortableLaser Manual? 0 Play Time 00:52:43 Cumulative 342.4 hours Start 2022.09.29 @ 01:33:16 End 2022.09.29 @ 07:37:03 Sessions 3 Manual Loads 0 Difficulty Rogue Special Mode None Game No. 158 Rogue 158 Adventurer 0 Explorer 0 Win Type - Total 8 Types 5/0/1/1/0/0/0/1/0 Lore% 87 Gallery% 92 Achievement% 70 Wizard Run 0 Options --------- ASCII 1 Keyboard 1 Movement Vi Keybinds 0 Fullscreen 2 Font 18/Cog Map View 76x50 Tactical HUD 1 Map Filters NONE Filters NONE Steam 0 RUN: 4a7216a0-a0cd-4326-b54f-19f2b88c1c8a